bitfinex/quotes_ETHUSD_20240717
["timestamp","ask_amount","ask_price","bid_price","bid_amount"]
[1721238464845,0.03718743,3415.9,3415.4,7.37901804]
[1721238466075,0.03718743,3415.9,3415.4,10.30692804]
[1721238466278,0.0371235,3415.8,3415.4,10.30692804]
[1721238466589,3.54094792,3416.0,3415.4,10.30692804]
[1721238466780,0.03709559,3415.7,3415.4,10.30692804]
[1721238466980,3.54094792,3416.0,3415.4,10.30692804]
[1721238467274,0.03708266,3415.6,3415.4,10.30692804]
[1721238467440,0.61353792,3415.9,3415.4,10.30692804]
[1721238467766,0.03709887,3415.8,3415.4,10.30692804]
[1721238468350,0.65063679,3415.8,3415.4,10.30692804]
[1721238468778,0.65063679,3415.8,3415.4,2.92791]
[1721238470166,0.65063679,3415.8,3415.7,2.92765]
[1721238470406,0.03709887,3415.8,3415.7,5.37095]
[1721238470907,0.61353792,3416.0,3415.8,2.92756]
[1721238471106,0.03713209,3415.9,3415.8,2.92756]
[1721238471310,0.61353792,3416.0,3415.8,2.92756]
[1721238471514,0.03713209,3415.9,3415.8,2.92756]
[1721238471862,0.03713209,3415.9,3415.7,2.4433]
[1721238472093,0.65067001,3415.9,3415.4,2.92788]
[1721238472277,0.65067001,3415.9,3415.7,1.05]
[1721238472278,0.61353792,3415.8,3415.7,1.05]
[1721238472496,0.65071885,3415.8,3415.7,1.05]
[1721238474868,0.65071885,3415.8,3415.7,6.47455]
[1721238475272,0.65071885,3415.8,3415.7,10.342427]
[1721238475273,0.03718093,3415.8,3415.7,10.342427]
[1721238475480,0.61353792,3416.1,3415.9,2.9274]
[1721238475675,0.92099316,3416.2,3416.1,2.92731]
[1721238475931,0.61372047,3416.3,3416.1,2.92731]
[1721238476082,0.61372047,3416.3,3416.0,3.9774]
[1721238476083,0.61372047,3416.3,3416.2,6.31642]
[1721238476424,1.5340921,3416.8,3416.4,2.92705]
[1721238476425,0.61372047,3416.5,3416.4,2.92705]
[1721238476639,0.61372047,3416.7,3416.4,3.97705]
[1721238476919,0.61372047,3416.7,3416.6,3.97688]
[1721238478382,0.61372047,3416.7,3416.6,2.92688]
[1721238479523,1.23064911,3417.0,3416.8,2.92671]
[1721238479702,0.92025077,3417.0,3416.8,2.92671]
[1721238479903,0.61349897,3416.9,3416.8,2.92671]
[1721238480417,0.61349897,3416.9,3416.8,5.35631]
[1721238480617,0.92025077,3417.1,3416.8,5.35631]
[1721238480618,0.61349897,3417.0,3416.9,2.92662]
[1721238480818,0.61349897,3417.1,3417.0,2.92654]
[1721238480985,0.61349897,3417.2,3417.0,2.92654]
[1721238481390,0.0374676,3417.1,3417.0,2.92654]
[1721238482080,0.61349897,3417.3,3417.2,2.92637]
[1721238482281,1.23064911,3417.6,3417.4,2.9262]
[1721238482282,0.61349897,3417.5,3417.4,2.9262]
[1721238482486,0.61349897,3417.5,3417.4,8.2405]
[1721238482686,0.61349897,3417.8,3417.6,2.92602]
[1721238482942,0.92025077,3417.9,3417.4,5.31423]
[1721238482943,0.61349897,3417.7,3417.4,5.31423]
[1721238483301,1.23064911,3418.0,3417.4,5.31423]
[1721238483302,0.61349897,3417.8,3417.4,5.31423]
[1721238483820,0.61349897,3417.8,3417.6,2.92602]
[1721238484033,0.61349897,3417.8,3417.4,2.3881]
[1721238484226,0.61349897,3417.7,3417.4,5.31422]
[1721238484415,0.61349897,3417.8,3417.4,2.92612]
[1721238484622,0.61349897,3417.8,3417.7,2.92594]
[1721238484815,0.61349897,3418.0,3417.7,2.92594]
[1721238485020,0.61349897,3418.0,3417.5,2.92605]
[1721238485226,0.61349897,3418.0,3417.6,2.92601]
[1721238485227,0.61349897,3417.9,3417.6,2.92601]
[1721238485455,0.92025077,3418.0,3417.6,2.92601]
[1721238485456,0.61349897,3418.0,3417.6,2.92601]
[1721238486100,0.03797096,3417.9,3417.6,2.92601]
[1721238487350,0.61349897,3418.1,3417.6,2.92601]
[1721238487557,0.03795646,3418.0,3417.6,2.92601]
[1721238488835,0.61349897,3418.2,3417.7,2.92591]
[1721238489177,0.61349897,3418.2,3417.8,5.8517]
[1721238489311,0.03806351,3418.1,3417.8,2.92585]
[1721238489509,0.61349897,3418.3,3417.8,2.92585]
[1721238489734,0.03807642,3418.2,3417.9,2.92576]
[1721238489916,0.61349897,3418.3,3417.9,2.92576]
[1721238490134,0.03807642,3418.2,3417.9,2.92576]
[1721238490320,0.61349897,3418.3,3417.9,2.92576]
[1721238490650,0.03807642,3418.2,3417.9,2.92576]
[1721238490949,0.61349897,3418.4,3417.7,2.92588]
[1721238491102,0.61349897,3418.4,3417.8,2.92583]
[1721238491307,0.03808933,3418.3,3417.8,2.92583]
[1721238492712,3.53875897,3418.5,3417.8,2.92583]
[1721238492906,0.03810223,3418.4,3417.6,5.85194]
[1721238493252,0.6516012,3418.4,3417.7,2.92592]
[1721238493448,0.03810223,3418.4,3417.7,2.92592]
[1721238493912,0.03810223,3418.4,3417.6,2.92595]
[1721238493913,2.96347223,3418.4,3417.6,2.92595]
[1721238494253,0.61349897,3418.3,3417.5,2.92611]
[1721238494650,0.03820209,3418.2,3417.5,2.92611]
[1721238494959,0.61349897,3418.4,3417.5,2.92611]
[1721238495256,2.92552,3418.2,3417.5,2.92611]
[1721238495547,0.03818918,3418.1,3417.5,2.92611]
[1721238496139,2.92584,3417.9,3417.1,2.92643]
[1721238496324,0.03818471,3417.8,3416.9,12.82459804]
[1721238496528,2.92595,3417.7,3416.9,9.89801804]
[1721238496735,0.03815889,3417.6,3416.9,9.89801804]
[1721238496923,2.92595,3417.7,3416.9,9.89801804]
[1721238496924,2.92595,3417.7,3416.9,7.37901804]
[1721238497126,2.96418889,3417.6,3416.9,7.37901804]
[1721238497350,2.96418889,3417.6,3416.9,10.30563804]
[1721238497851,2.96418889,3417.6,3416.9,7.37901804]
[1721238498019,2.96418889,3417.6,3416.9,10.30562804]
[1721238498221,0.03815889,3417.6,3417.0,2.92653]
[1721238498640,2.92596,3417.7,3417.0,2.92653]
[1721238498841,0.03811857,3417.5,3417.0,2.92653]
[1721238499150,0.03810565,3417.4,3417.0,2.92653]
[1721238499352,2.92596,3417.7,3417.0,2.92653]
[1721238499656,0.03813148,3417.6,3417.0,2.92653]
[1721238500310,2.92587,3417.8,3417.0,2.92653]
[1721238500739,0.03814439,3417.7,3417.1,2.92644]
[1721238500962,0.03814439,3417.7,3417.3,2.92628]
[1721238501116,2.92569,3418.0,3417.3,2.92628]
[1721238501445,0.03817021,3417.9,3417.3,2.92628]
[1721238503059,2.92573,3418.0,3417.3,2.92628]
[1721238503284,0.0381573,3417.8,3417.3,2.92628]
[1721238503450,0.03817021,3417.9,3417.3,2.92628]
[1721238503645,0.03814439,3417.7,3417.3,2.92628]
[1721238503854,0.0381573,3417.8,3417.3,2.92628]
[1721238504181,0.03814439,3417.7,3417.3,2.92628]
[1721238504377,2.92573,3418.0,3417.3,2.92628]
[1721238504543,0.03812517,3417.9,3417.3,2.92628]
[1721238504981,0.03812517,3417.9,3417.0,2.92653]
[1721238505169,2.92592,3417.8,3417.1,2.9264]
[1721238505357,0.03810072,3417.7,3417.1,5.85279]
[1721238505560,0.03810072,3417.7,3417.1,2.92639]
[1721238505561,2.96404072,3417.7,3417.1,2.92639]
[1721238507760,0.03810072,3417.7,3417.1,5.85276]
[1721238507947,2.92582,3417.9,3417.2,2.92636]
[1721238508152,0.0380725,3417.8,3417.2,2.92636]
[1721238509800,0.0380725,3417.8,3417.5,2.9261]
[1721238510390,0.03799887,3417.7,3417.5,2.9261]
[1721238510591,2.9256,3418.1,3417.5,2.9261]
[1721238510793,0.0380376,3418.0,3417.5,2.9261]
[1721238511579,0.0380376,3418.0,3417.6,2.92602]
[1721238512067,0.61349897,3418.2,3417.6,2.92602]
[1721238512366,3.53902897,3418.2,3417.6,2.92602]
[1721238512565,0.03808203,3418.1,3417.6,2.92602]
[1721238513692,0.03808203,3418.1,3417.8,2.92584]
[1721238514196,0.61349897,3418.4,3417.8,2.92584]
[1721238514393,0.6515657,3418.3,3417.8,2.92584]
[1721238514900,0.03806673,3418.3,3417.8,2.92584]
[1721238515266,0.6515657,3418.3,3417.8,2.92584]
[1721238516375,0.61349897,3418.2,3417.6,2.92602]
[1721238516590,0.03806147,3418.1,3417.7,2.92593]
[1721238518391,0.65156044,3418.1,3417.7,2.92593]
[1721238519519,0.61349897,3418.0,3417.7,2.92593]
[1721238519719,0.95831224,3418.1,3417.7,2.92593]
[1721238519720,0.65156044,3418.1,3417.7,2.92593]
[1721238520019,0.61349897,3418.1,3417.7,2.92588]
[1721238520222,0.65157747,3418.0,3417.7,2.92588]
[1721238520793,0.61349897,3417.9,3417.7,2.92588]
[1721238520992,0.03806017,3417.8,3417.7,2.92588]
[1721238521294,0.92025077,3417.9,3417.7,2.92588]
[1721238521485,0.03806017,3417.8,3417.7,2.92588]
[1721238521683,0.65143322,3417.8,3417.7,2.92588]
[1721238522312,0.03806017,3417.8,3417.7,2.92588]
[1721238522729,0.65162129,3417.8,3417.7,2.92588]
[1721238523019,0.03806017,3417.8,3417.7,2.92588]
[1721238523422,0.95831094,3417.8,3417.7,2.92588]
[1721238524315,2.03551587,3417.8,3417.7,3.97488]
[1721238524835,0.95831094,3417.8,3417.7,3.97488]
[1721238525336,1.11526343,3417.8,3417.7,3.97488]
[1721238525535,1.11526413,3417.8,3417.7,3.97488]
[1721238526524,1.11525218,3417.8,3417.7,3.97488]
[1721238526943,0.03806017,3417.8,3417.7,3.97488]
[1721238527133,1.11524842,3417.8,3417.7,3.97488]
[1721238528158,2.34590345,3417.8,3417.3,2.3305]
[1721238528367,0.92124085,3417.4,3417.2,7.37901804]
[1721238528662,0.65216086,3417.3,3417.1,2.92645]
[1721238528829,0.65216086,3417.3,3417.2,1.049]
[1721238529035,0.61421669,3417.3,3417.2,1.049]
[1721238529249,0.65216086,3417.3,3417.2,1.049]
[1721238529435,0.03794417,3417.3,3417.2,1.049]
[1721238529632,0.95918502,3417.3,3417.2,1.049]
[1721238530046,2.03653465,3417.3,3417.2,1.049]
[1721238530237,0.95918502,3417.3,3417.0,2.4888]
[1721238530447,0.6142432,3417.1,3417.0,2.4888]
[1721238530651,2.92656,3417.0,3416.7,7.37901804]
[1721238530849,0.6142432,3416.8,3416.7,7.37901804]
[1721238531172,1.11532344,3416.8,3416.7,7.37901804]
[1721238531527,0.95901117,3416.8,3416.7,9.85511804]
[1721238531733,0.03784581,3416.8,3416.7,13.40671851]
[1721238532033,0.65195258,3416.8,3416.7,13.40671851]
[1721238532929,0.03784581,3416.8,3416.7,13.40671851]
[1721238533654,0.61410677,3416.9,3416.8,2.92671]
[1721238533970,0.65188607,3416.9,3416.8,2.92671]
[1721238534343,0.0377793,3416.9,3416.8,2.92671]
[1721238534542,0.65188607,3416.9,3416.8,2.92671]
[1721238535555,0.65188607,3416.9,3416.7,2.4761]
[1721238535761,0.65188607,3416.9,3416.7,5.40287]
[1721238536431,0.65188607,3416.9,3416.8,2.92671]
[1721238536944,0.0377793,3416.9,3416.8,2.92671]
[1721238537468,0.0377793,3416.9,3416.8,4.011472]
[1721238537674,0.0377793,3416.9,3416.8,6.938182]
[1721238537969,0.61410677,3417.0,3416.9,2.92662]
[1721238538179,0.6518997,3417.0,3416.9,2.92662]
[1721238538470,0.6518997,3417.0,3416.9,5.85324]
[1721238538675,0.03779293,3417.0,3416.9,7.0464502]
[1721238539264,0.61410677,3417.3,3417.2,2.92637]
[1721238539446,0.92116536,3417.5,3417.2,2.92637]
[1721238539447,0.92116536,3417.4,3417.2,5.85274]
[1721238539647,0.65155185,3417.3,3417.2,2.92637]
[1721238539957,0.03783917,3417.3,3417.2,2.92637]
[1721238540343,0.65155185,3417.3,3417.2,2.92637]
[1721238541450,0.03783917,3417.3,3417.2,2.92637]
[1721238541650,0.65155047,3417.3,3417.2,2.92637]
[1721238545182,0.03783917,3417.3,3417.2,2.92637]
[1721238545487,0.65156187,3417.3,3417.2,2.92637]
[1721238548057,0.65156187,3417.3,3417.2,5.36727]
[1721238548258,0.65156187,3417.3,3417.2,9.123011]
[1721238548259,0.03783917,3417.3,3417.2,9.123011]
[1721238548706,0.6137227,3417.8,3417.7,2.92594]
[1721238548858,0.92116536,3417.9,3417.7,2.92594]
[1721238549057,0.03793372,3417.8,3417.7,2.92594]
[1721238550260,0.95909908,3417.8,3417.7,2.92594]
[1721238550695,0.95909908,3417.8,3417.7,5.85188]
[1721238550696,0.65151719,3417.8,3417.7,5.85188]
[1721238550999,0.92116536,3417.9,3417.8,2.92585]
[1721238551159,0.9591029,3417.9,3417.8,2.92585]
[1721238554363,0.9591029,3417.9,3417.8,3.97485]
[1721238557824,0.03793754,3417.9,3417.8,3.97485]
[1721238558009,0.9591029,3417.9,3417.8,3.97485]
[1721238559185,0.03793754,3417.9,3417.8,3.97485]
[1721238560287,0.65138122,3417.9,3417.8,3.97485]
[1721238560479,0.65138122,3417.9,3417.3,2.92624]
[1721238560480,0.03793754,3417.9,3417.3,2.92624]
[1721238560682,0.61344121,3417.8,3417.6,1.049]
[1721238560909,0.61344121,3417.8,3417.1,7.37901804]
[1721238560910,0.92116536,3417.8,3417.1,7.37901804]
[1721238561124,0.61349746,3417.3,3417.1,7.37901804]
[1721238561496,0.0365138,3417.2,3417.1,7.37901804]
[1721238561829,0.61349746,3417.3,3417.1,7.37901804]
[1721238562092,0.0365138,3417.2,3417.1,7.37901804]
[1721238562517,0.61349746,3417.3,3417.1,7.37901804]
[1721238562717,0.03647952,3417.2,3417.1,7.37901804]
[1721238563063,0.61349746,3417.3,3417.1,7.37901804]
[1721238563219,0.03647952,3417.2,3417.1,7.37901804]
[1721238563418,0.61349746,3417.3,3417.1,7.37901804]
[1721238563642,0.03647952,3417.2,3417.1,7.37901804]
[1721238563832,0.61349746,3417.3,3417.1,7.37901804]
[1721238564034,0.03647952,3417.2,3417.1,7.37901804]
[1721238564222,0.61349746,3417.3,3417.1,7.37901804]
[1721238564424,0.64997698,3417.2,3417.1,7.37901804]
[1721238565618,0.03647952,3417.2,3417.1,7.37901804]
[1721238565926,0.61349746,3417.2,3417.1,7.37901804]
[1721238566115,0.95764488,3417.2,3417.1,7.37901804]
[1721238566738,0.95764488,3417.2,3417.0,1.049]
[1721238567823,0.92116536,3417.1,3417.0,1.049]
[1721238568022,0.9576731,3417.1,3417.0,1.049]
[1721238569059,3.8841231,3417.1,3416.5,10.30594804]
[1721238569222,3.8841231,3417.1,3416.9,1.049]
[1721238569435,0.92116536,3417.0,3416.9,1.049]
[1721238569643,0.95765269,3417.0,3416.9,1.049]
[1721238571389,0.03648733,3417.0,3416.9,1.049]
[1721238571739,0.64999179,3417.0,3416.9,1.049]
[1721238572479,0.03648733,3417.0,3416.9,1.049]
[1721238572670,0.03648733,3417.0,3416.8,1.049]
[1721238572877,0.61351891,3416.9,3416.8,1.049]
[1721238573062,0.61351891,3416.9,3416.6,1.049]
[1721238573248,0.64989366,3416.9,3416.6,1.049]
[1721238574854,0.61351891,3416.8,3416.6,1.049]
[1721238575191,2.3671,3416.7,3416.1,7.37901804]
[1721238575410,2.3671,3416.7,3415.6,14.6445]
[1721238575411,2.9271,3416.4,3415.6,9.77351804]
[1721238575687,2.9271,3416.4,3415.6,3.4435]
[1721238575688,0.61358823,3415.9,3415.6,3.4435]
[1721238576065,0.61358823,3415.9,3415.8,1.049]
[1721238576264,0.61358823,3416.0,3415.8,1.049]
[1721238576852,0.61358823,3416.0,3415.6,3.4435]
[1721238577392,0.61358823,3415.9,3415.6,1.049]
[1721238577784,3.54112823,3415.9,3415.6,1.049]
[1721238577989,3.54112823,3415.9,3415.5,1.049]
[1721238578183,3.54112823,3415.9,3415.3,2.4075]
[1721238578810,2.92754,3415.9,3415.3,2.4075]
[1721238579009,3.54112823,3415.9,3415.3,2.4075]
[1721238579217,2.92754,3415.9,3415.3,2.4075]
[1721238579583,0.61358823,3416.0,3415.3,2.4075]
[1721238579797,0.61358823,3416.0,3415.4,2.92785]
[1721238580139,1.22832114,3416.3,3415.6,2.92772]
[1721238580140,0.61358823,3416.1,3415.6,2.92772]
[1721238580285,3.54072823,3416.3,3415.6,2.92772]
[1721238580757,2.92714,3416.3,3415.6,2.92772]
[1721238581044,0.61358823,3416.3,3415.7,2.92763]
[1721238581335,0.61358823,3416.4,3415.8,5.40885]
[1721238582949,0.61358823,3416.5,3416.0,2.92738]
[1721238583261,0.61358823,3416.6,3416.1,2.92731]
[1721238583631,0.61358823,3416.6,3415.9,2.92741]
[1721238584025,0.61358823,3416.6,3416.0,2.92738]
[1721238584557,3.54040823,3416.7,3416.0,2.92738]
[1721238586261,2.92689,3416.6,3415.8,5.40886]
[1721238586458,2.92689,3416.6,3415.8,5.40879]
[1721238586658,2.92689,3416.6,3415.9,2.92742]
[1721238587134,3.54047823,3416.6,3415.9,2.92742]
[1721238587330,2.92689,3416.6,3415.9,2.92742]
[1721238587750,2.92689,3416.6,3416.0,2.92739]
[1721238588063,2.92689,3416.6,3415.9,2.92742]
[1721238588302,2.92689,3416.6,3416.0,2.92739]
[1721238589864,3.54039823,3416.7,3416.0,2.92739]
[1721238590069,0.61358823,3416.7,3416.1,2.92729]
[1721238590240,3.54034823,3416.8,3416.1,2.92729]
[1721238590638,0.61358823,3416.8,3416.1,2.92729]
[1721238591159,3.84775536,3417.0,3416.1,2.92729]
[1721238591160,0.03599947,3416.7,3416.1,2.92729]
[1721238591532,0.61358823,3416.9,3416.1,2.92729]
[1721238591733,0.03598655,3416.6,3416.1,2.92729]
[1721238591934,2.92676,3416.8,3416.1,2.92729]
[1721238592136,0.03597362,3416.5,3416.1,2.92729]
[1721238592329,2.92681,3416.7,3416.1,2.92729]
[1721238592556,0.0359607,3416.4,3416.1,2.92729]
[1721238592760,0.03594778,3416.3,3415.9,2.92741]
[1721238593075,2.92681,3416.7,3416.0,2.92735]
[1721238593234,0.0359786,3416.2,3416.0,2.92735]
[1721238593569,2.92681,3416.7,3416.1,2.9273]
[1721238593932,0.03603029,3416.6,3416.1,2.9273]
[1721238594639,0.03603029,3416.6,3416.0,2.92737]
[1721238595338,0.03603029,3416.6,3415.9,5.85481]
[1721238595874,0.03603029,3416.6,3416.0,2.92738]
[1721238596881,2.92698,3416.5,3415.8,2.4813]
[1721238597183,0.03600171,3416.4,3415.8,2.4813]
[1721238597349,0.03600171,3416.4,3416.1,2.92726]
[1721238597549,3.54031823,3416.8,3416.2,2.2791]
[1721238597772,2.92673,3416.8,3416.2,2.2791]
[1721238597983,0.03618326,3416.7,3416.2,2.2791]
[1721238598474,0.03618326,3416.7,3416.2,5.20632]
[1721238599187,0.03616692,3416.6,3416.2,5.20632]
[1721238599387,0.61358823,3416.8,3416.3,2.92713]
[1721238599578,0.03617983,3416.7,3416.3,2.92713]
[1721238599759,0.61358823,3416.9,3416.3,2.92713]
[1721238599962,0.64978098,3416.8,3416.3,2.92713]
[1721238600377,0.03619275,3416.8,3416.4,1.05]
[1721238601975,0.64978098,3416.8,3416.4,2.92704]
[1721238602652,0.03619275,3416.8,3416.6,2.92687]
[1721238603080,0.61358823,3417.0,3416.6,5.85369]
[1721238603285,0.03594276,3416.7,3416.6,2.92682]
[1721238603471,0.61358823,3417.1,3416.6,5.85363]
[1721238603671,0.03598153,3417.0,3416.6,5.85363]
[1721238603877,0.03598153,3417.0,3416.8,5.2683]
[1721238604263,0.03598153,3417.0,3416.8,8.19493]
[1721238604482,0.03598153,3417.0,3416.9,3.97662]
[1721238604893,0.61358823,3417.3,3417.0,2.92647]
[1721238605099,1.22832114,3417.6,3417.1,2.92645]
[1721238605100,0.61358823,3417.4,3417.1,2.92645]
[1721238606105,0.03608617,3417.3,3417.1,2.92645]
[1721238606397,0.6496744,3417.3,3417.1,2.92645]
[1721238606764,0.6496744,3417.3,3416.9,2.92662]
[1721238606990,0.61358823,3417.2,3417.0,2.92654]
[1721238607156,0.03612595,3417.1,3417.0,2.92654]
[1721238608459,0.61358823,3417.3,3417.0,2.92654]
[1721238608661,0.03613887,3417.2,3417.1,2.92645]
[1721238608901,0.61358823,3417.3,3417.1,2.92645]
[1721238609089,0.03613887,3417.2,3417.1,2.92645]
[1721238609603,0.61358823,3417.3,3417.1,5.85284]
[1721238609789,0.92116536,3417.4,3417.1,5.85284]
[1721238609790,0.03613201,3417.2,3417.1,3.97639]
[1721238609961,0.61358823,3417.4,3417.1,3.97639]
[1721238610162,0.0362201,3417.3,3417.1,3.97639]
[1721238610668,0.61358823,3417.5,3417.1,3.97639]
[1721238610909,0.03625625,3417.4,3417.2,2.92637]
[1721238611120,0.03625625,3417.4,3417.1,1.05]
[1721238611816,0.03625625,3417.4,3417.1,3.97644]
[1721238613086,0.03625625,3417.4,3417.1,1.05]
[1721238613803,0.61358823,3417.6,3417.1,1.05]
[1721238614009,0.03628288,3417.5,3417.1,3.97644]
[1721238615319,0.03628288,3417.5,3417.2,2.2896]
[1721238615485,0.03628288,3417.5,3417.4,1.05]
[1721238615818,0.61358823,3418.0,3417.5,2.92604]
[1721238616022,0.0363509,3417.9,3417.8,1.05]
[1721238616783,0.61358823,3418.1,3417.8,1.05]
[1721238617010,0.03636381,3418.0,3417.8,1.05]
[1721238617316,0.64995204,3418.0,3417.8,1.05]
[1721238617505,0.03636381,3418.0,3417.8,1.05]
[1721238617814,0.03636381,3418.0,3417.6,1.05]
[1721238618386,0.64995204,3418.0,3417.6,1.05]
[1721238618794,0.03636381,3418.0,3417.6,1.05]
[1721238619108,5.318,3418.0,3417.2,2.2896]
[1721238619289,0.64996509,3417.9,3417.3,1.05]
[1721238619489,0.03637686,3417.9,3417.3,1.05]
[1721238619723,0.61358823,3417.8,3417.3,1.05]
[1721238619907,0.61358823,3417.8,3417.0,7.37901804]
[1721238620127,1.08637686,3417.9,3417.0,7.37901804]
[1721238620128,2.93559404,3417.7,3417.0,7.37901804]
[1721238620449,2.93559404,3417.7,3416.3,1.05]
[1721238620450,2.92653,3417.1,3416.3,1.05]
[1721238620729,2.92653,3417.1,3416.1,2.92728]
[1721238620730,2.92663,3416.9,3416.1,1.05]
[1721238621091,2.92663,3416.9,3416.0,12.79740804]
[1721238621092,0.03632307,3416.8,3416.3,1.05]
[1721238622028,3.53856451,3417.0,3416.3,1.05]
[1721238622208,3.57488013,3416.9,3416.3,1.05]
[1721238622415,3.57488013,3416.9,3416.1,2.92727]
[1721238623424,0.64825013,3416.9,3416.1,2.92727]
[1721238623629,0.64825013,3416.9,3416.3,2.92711]
[1721238623924,0.03623562,3416.9,3416.3,2.92711]
[1721238624123,0.03623562,3416.9,3416.1,2.92724]
[1721238624427,2.9268,3416.7,3416.0,9.87001804]
[1721238624595,0.03621304,3416.6,3416.0,7.37901804]
[1721238625241,0.64822755,3416.6,3416.0,7.37901804]
[1721238626412,0.64822755,3416.6,3415.9,2.92747]
[1721238626620,0.61201451,3416.5,3415.9,2.92747]
[1721238627176,0.03623514,3416.4,3415.9,2.92747]
[1721238628129,0.03622907,3416.3,3415.9,2.92747]
[1721238628528,0.61201451,3416.5,3415.9,2.92747]
[1721238628846,0.61201451,3416.5,3415.5,7.37901804]
[1721238628847,2.415,3416.4,3415.5,7.37901804]
[1721238628994,2.92738,3416.1,3415.5,7.37901804]
[1721238629200,0.64803122,3416.0,3415.5,7.37901804]
[1721238629520,0.61201451,3415.9,3415.5,7.37901804]
[1721238629940,0.03603942,3415.8,3415.5,7.37901804]
[1721238631001,2.92761,3415.8,3415.1,2.2525]
[1721238631201,0.0360265,3415.7,3415.1,2.2525]
[1721238631426,0.07286287,3415.7,3415.1,2.2525]
[1721238634757,0.07286287,3415.7,3414.9,2.92834]
[1721238635070,3.00052287,3415.7,3414.9,2.92834]
[1721238635227,3.61253738,3415.7,3414.9,2.92834]
[1721238635635,3.00052287,3415.7,3414.9,2.92834]
[1721238636762,2.92781,3415.6,3414.8,2.3524]
[1721238636966,2.92788,3415.5,3414.5,2.92863]
[1721238637259,2.92788,3415.5,3414.4,12.58890804]
[1721238637260,2.92792,3415.4,3414.4,5.20989]
[1721238637423,2.92808,3415.3,3414.4,2.2812]
[1721238637773,0.07259942,3415.2,3414.4,5.20989]
[1721238638125,0.07259942,3415.2,3414.5,2.92867]
[1721238639028,2.92783,3415.5,3414.5,2.92867]
[1721238639229,3.00052084,3415.4,3414.5,2.92867]
[1721238639537,3.00052084,3415.4,3414.6,2.52]
[1721238639738,0.07254084,3415.4,3414.7,2.92844]
[1721238639946,0.07254084,3415.4,3414.8,5.36976]
[1721238640140,2.92771,3415.7,3414.8,5.36976]
[1721238640523,3.53953451,3415.9,3414.9,2.9283]
[1721238640524,0.07249342,3415.6,3414.9,2.9283]
[1721238640723,0.07249342,3415.6,3414.9,5.85656]
[1721238641035,0.07248156,3415.5,3415.0,2.92823]
[1721238641353,2.92757,3415.8,3415.0,2.92823]
[1721238641567,0.0722564,3415.4,3415.0,2.92823]
[1721238641874,2.9274,3416.0,3415.0,2.92823]
[1721238642058,0.07233345,3415.9,3415.0,2.92823]
[1721238642224,0.07233345,3415.9,3415.0,5.44823]
[1721238642637,0.07233345,3415.9,3415.2,2.92807]
[1721238642847,6.46637451,3416.3,3415.3,2.92799]
[1721238643031,0.07240333,3416.2,3415.4,2.9279]
[1721238643348,2.99963333,3416.2,3415.4,2.9279]
[1721238644740,5.92693333,3416.2,3415.2,2.928]
[1721238644941,2.92734,3416.1,3415.2,2.928]
[1721238645349,0.07244653,3416.0,3415.2,2.928]
[1721238646249,2.92759,3415.8,3415.1,2.4716]
[1721238646565,0.07241098,3415.7,3415.1,2.4716]
[1721238646876,0.07241098,3415.7,3414.6,2.4219]
[1721238646877,2.9278,3415.6,3414.6,2.4219]
[1721238647077,2.92798,3415.4,3414.5,10.30769804]
[1721238647367,2.92798,3415.4,3414.5,2.92868]
[1721238647571,0.07236505,3415.3,3414.5,2.92868]
[1721238647777,0.07236505,3415.3,3414.6,2.52]
[1721238648370,3.00036505,3415.3,3414.6,2.52]
[1721238648932,2.92809,3415.2,3414.3,2.92878]
[1721238649549,2.92826,3415.0,3414.2,2.4219]
[1721238649754,2.92843,3414.8,3414.0,7.37901804]
[1721238649958,2.92882,3414.4,3413.6,4.8957]
[1721238650152,2.92882,3414.4,3413.4,7.37901804]
[1721238650153,2.92891,3414.3,3413.4,10.30863804]
[1721238650340,3.00078598,3414.3,3413.4,10.30863804]
[1721238650543,3.00078598,3414.3,3413.5,2.92953]
[1721238650544,0.07187598,3414.3,3413.5,2.92953]
[1721238651181,3.00073598,3414.3,3413.4,7.37901804]
[1721238652276,3.00073598,3414.3,3413.4,10.30862804]
[1721238653045,3.00073598,3414.3,3413.4,2.92961]
[1721238653453,3.00073598,3414.3,3413.1,2.92988]
[1721238653454,2.92918,3414.0,3413.1,2.92988]
[1721238653659,0.07183096,3413.9,3412.9,10.30899804]
[1721238653842,0.07183096,3413.9,3412.9,2.92998]
[1721238654039,0.07183096,3413.9,3413.0,2.92996]
[1721238654362,2.92929,3413.8,3412.8,2.93008]
[1721238654746,3.001223,3413.7,3412.7,7.85309]
[1721238654953,3.001223,3413.7,3412.7,10.78324]
[1721238655348,2.92947,3413.6,3412.7,10.78324]
[1721238655747,0.07165206,3413.5,3412.7,10.78324]
[1721238655953,0.07165206,3413.5,3412.8,1.078324]
[1721238656684,0.07165206,3413.5,3412.8,4.008444]
[1721238657359,0.07165206,3413.5,3412.8,2.93012]
[1721238657893,0.07165206,3413.5,3412.6,2.93031]
[1721238658193,2.92947,3413.6,3412.7,2.93016]
[1721238658516,0.07167087,3413.5,3412.7,2.93016]
[1721238658665,0.07167087,3413.5,3412.8,2.93013]
[1721238659209,2.92929,3413.8,3412.8,2.93013]
[1721238659569,0.07169461,3413.7,3412.8,2.93013]
[1721238660065,2.92947,3413.6,3412.7,2.9302]
[1721238660274,0.07167087,3413.5,3412.8,2.93011]
[1721238660581,2.92942,3413.7,3412.8,2.93011]
[1721238660784,2.92947,3413.6,3412.8,2.93011]
[1721238661091,3.00115274,3413.6,3412.8,3.516141]
[1721238661262,3.00115274,3413.6,3412.8,0.586031]
[1721238661466,3.00115274,3413.6,3412.7,2.93022]
[1721238662407,3.00115274,3413.6,3412.8,2.93014]
[1721238663516,0.07168274,3413.6,3412.8,2.93014]
[1721238663717,2.92937,3413.7,3412.8,2.93014]
[1721238663929,3.00016311,3413.6,3412.8,2.93014]
[1721238664088,3.00016311,3413.6,3412.6,2.93024]
[1721238664497,2.4497,3413.5,3412.6,2.93024]
[1721238664693,0.07067937,3413.4,3412.6,2.93024]
[1721238664906,0.07067937,3413.4,3412.5,2.93036]
[1721238665240,2.92972,3413.3,3412.5,2.93036]
[1721238665589,0.07058168,3413.2,3412.5,2.93036]
[1721238667011,2.92989,3413.1,3412.3,5.45055]